fUST/lending_fUST_20250601
["ID","MTS","AMOUNT","RATE_DAILY","PERIOD"]
[363596712,1748779839475,-430.0,0.00020547,2]
[363596714,1748779839484,-150.79,0.00020667,2]
[363596716,1748779839494,-156.305,0.00020667,2]
[363596718,1748779839503,-150.0,0.00020667,2]
[363596720,1748779839514,-592.626,0.00020667,2]
[363596722,1748779839523,-405.0,0.00020667,2]
[363596724,1748779839534,-297.67,0.000207,2]
[363596726,1748779839543,-295.06,0.00020821,2]
[363596728,1748779839553,-432.68775712,0.00020871,2]
[363596729,1748779839564,-3000.0,0.00021,2]
[363596731,1748779839574,-297.73,0.00021,2]
[363596733,1748779839583,-4734.484521,0.0002101,2]
[363596735,1748779839593,-29562.13012,0.00021999,2]
[363596737,1748779839603,-12000.0,0.00022,2]
[363596739,1748779839612,-250.0,0.00022,2]
[363596740,1748779839621,-344.71,0.00022182,10]
[363596741,1748779839631,-250.0,0.00022192,7]
[363596742,1748779839640,-500.0,0.00022259,2]
[363596743,1748779839649,-207.4,0.00022572,2]
[363596744,1748779839659,-300.0,0.00022572,2]
[363596745,1748779839668,-300.0,0.00022572,2]
[363596746,1748779839677,-300.0,0.00022572,2]
[363596747,1748779839686,-300.0,0.00022572,2]
[363596748,1748779839696,-300.0,0.00022572,2]
[363596749,1748779839705,-300.0,0.00022572,2]
[363596750,1748779839714,-446.14358159,0.00022572,2]
[363596751,1748779839723,-300.0,0.00022572,2]
[363596752,1748779839732,-300.0,0.00022572,2]
[363596753,1748779839741,-300.0,0.00022572,2]
[363596754,1748779839750,-300.0,0.00022572,2]
[363596755,1748779839761,-300.0,0.00022572,2]
[363596756,1748779839770,-300.0,0.00022572,2]
[363596757,1748779839779,-300.0,0.00022572,2]
[363596758,1748779839788,-300.0,0.00022572,2]
[363596759,1748779839798,-300.0,0.00022572,2]
[363596760,1748779839808,-3653.82803689,0.000228,4]
[363596761,1748779839817,-260.4345052,0.00022914,2]
[363596762,1748779839827,-12531.10562585,0.00023,30]
[363596763,1748779839836,-20033.58801437,0.00023,5]
[363596764,1748779839846,-12666.87825251,0.00023,30]
[363596765,1748779839855,-250.0,0.00023014,7]
[363596766,1748779839875,-260.43450517,0.00023128,2]
[363596767,1748779839884,-2001.99115694,0.000233,2]
[363596768,1748779839894,-260.43450517,0.00023342,2]
[363596769,1748779839904,-160.0,0.00023421,2]
[363596770,1748779839913,-1192.648721,0.00023422,3]
[363596771,1748779839923,-297.67,0.000235,7]
[363596772,1748779839932,-260.43450517,0.00023555,2]
[363596773,1748779839942,-500.0,0.00023593,6]
[363596774,1748779839951,-893.19,0.000236,7]
[363596775,1748779839961,-20000.0,0.000236,5]
[363596776,1748779839970,-150.0,0.00023667,2]
[363596777,1748779839980,-150.0,0.00023667,2]
[363596778,1748779839990,-405.0,0.00023667,2]
[363596779,1748779839999,-2000.0,0.000237,2]
[363596781,1748779840009,-153.0,0.000237,31]
[363596782,1748779840019,-153.0,0.000237,31]
[363596783,1748779840028,-153.0,0.000237,31]
[363596785,1748779840038,-153.0,0.000237,31]
[363596786,1748779840048,-153.0,0.000237,31]
[363596788,1748779840058,-153.0,0.000237,31]
[363596790,1748779840067,-153.0,0.000237,31]
[363596792,1748779840076,-153.0,0.000237,31]
[363596794,1748779840086,-153.0,0.000237,31]
[363596796,1748779840095,-153.0,0.000237,31]
[363596797,1748779840105,-153.0,0.000237,31]
[363596800,1748779840115,-153.0,0.000237,31]
[363596802,1748779840124,-153.0,0.000237,31]
[363596804,1748779840134,-153.0,0.000237,31]
[363596806,1748779840144,-5792.54866342,0.00023765,2]
[363596808,1748779840154,-5792.54866341,0.00023767,2]
[363596810,1748779840164,-5792.54866341,0.00023769,2]
[363596812,1748779840174,-260.43450517,0.00023769,2]
[363596814,1748779840186,-158.63709109,0.00023769,2]
[363596816,1748779840197,-500.0,0.00023793,7]
[363596818,1748779840207,-2000.0,0.000238,2]
[363596820,1748779840217,-2000.0,0.000238,2]
[363596822,1748779840228,-501.28489776,0.000238,9]
[363596824,1748779840238,-39999.999999,0.000238,7]
[363596826,1748779840249,-500.0,0.000238,9]
[363596828,1748779840260,-500.85666673,0.000238,9]
[363596831,1748779840271,-201.0,0.0002383,9]
[363596833,1748779840281,-229.3709046,0.00023856,3]
[363596835,1748779840291,-160.0,0.00023856,3]
[363596837,1748779840301,-212.80060342,0.00023856,3]
[363596839,1748779840311,-160.0,0.00023856,3]
[363596841,1748779840321,-738.18,0.00023857,3]
[363596843,1748779840331,-369.09,0.00023859,3]
[363596845,1748779840342,-184.55,0.00023859,3]
[363596847,1748779840352,-553.67,0.00023859,3]
[363596849,1748779840362,-667.41,0.0002386,2]
[363596851,1748779840371,-500.0,0.00023864,2]
[363596853,1748779840381,-500.0,0.00023864,2]
[363596855,1748779840391,-512.28997149,0.00023864,2]
[363596857,1748779840401,-558.27657994,0.00023864,2]
[363596859,1748779840411,-500.0,0.00023864,2]
[363596861,1748779840422,-512.28997149,0.00023864,2]
[363596863,1748779840433,-512.28997149,0.00023864,2]
[363596865,1748779840442,-512.28997149,0.00023864,2]
[363596867,1748779840452,-151.0,0.00023866,7]
[363596869,1748779840461,-151.0,0.00023866,7]
[363596871,1748779840471,-151.0,0.00023866,7]
[363596873,1748779840481,-151.0,0.00023866,7]
[363596875,1748779840490,-151.0,0.00023866,7]
[363596877,1748779840500,-163.25188,0.00023866,7]
[363596879,1748779840511,-151.0,0.00023866,7]
[363596881,1748779840521,-151.0,0.00023866,7]
[363596883,1748779840534,-151.0,0.00023866,7]
[363596885,1748779840544,-151.0,0.00023866,7]
[363596887,1748779840554,-151.0,0.00023866,7]
[363596889,1748779840564,-220.526668,0.00023866,7]
[363596891,1748779840574,-151.0,0.00023866,7]
[363596893,1748779840583,-151.0,0.00023866,7]
[363596896,1748779840593,-166.627368,0.00023866,7]
[363596898,1748779840602,-151.0,0.00023866,7]
[363596899,1748779840612,-152.080715,0.00023866,7]
[363596901,1748779840622,-842.5625,0.00023866,3]
[363596904,1748779840632,-151.0,0.00023867,7]
[363596906,1748779840642,-151.0,0.00023867,7]
[363596908,1748779840651,-151.0,0.00023867,2]
[363596910,1748779840660,-151.0,0.00023867,2]
[363596912,1748779840671,-151.0,0.00023867,2]
[363596914,1748779840681,-155.462414,0.00023867,2]
[363596916,1748779840690,-151.0,0.00023867,7]
[363596918,1748779840700,-151.0,0.00023867,7]
[363596920,1748779840710,-151.0,0.00023867,7]
[363596922,1748779840719,-151.0,0.00023867,7]
[363596924,1748779840729,-151.0,0.00023867,7]
[363596926,1748779840739,-172.688586,0.00023867,7]
[363596928,1748779840749,-151.0,0.00023867,7]
[363596930,1748779840759,-151.0,0.00023867,7]
[363596932,1748779840770,-151.0,0.00023867,7]
[363596934,1748779840780,-165.36601,0.00023867,7]
[363596936,1748779840791,-165.36601,0.00023867,7]
[363596937,1748779840800,-165.36601,0.00023867,7]
[363596939,1748779840809,-165.36601,0.00023867,7]
[363596941,1748779840818,-165.36601,0.00023867,7]
[363596943,1748779840827,-165.36601,0.00023867,7]
[363596945,1748779840837,-165.36601,0.00023867,7]
[363596947,1748779840846,-165.36601,0.00023867,7]
[363596949,1748779840856,-165.36601,0.00023867,7]
[363596951,1748779840866,-165.36601,0.00023867,7]
[363596953,1748779840876,-165.36601,0.00023867,7]
[363596955,1748779840885,-165.36601,0.00023867,7]
[363596957,1748779840895,-165.36601,0.00023867,7]
[363596959,1748779840904,-165.36601,0.00023867,7]
[363596961,1748779840913,-165.36601,0.00023867,7]
[363596963,1748779840923,-165.36601,0.00023867,7]
[363596965,1748779840932,-165.36601,0.00023867,7]
[363596967,1748779840942,-165.36601,0.00023867,7]
[363596969,1748779840952,-165.36601,0.00023867,7]
[363596971,1748779840962,-165.366,0.00023867,7]
[363596973,1748779840972,-151.0,0.00023867,2]
[363596975,1748779840981,-151.0,0.00023867,2]
[363596977,1748779840990,-151.0,0.00023867,7]
[363596979,1748779841000,-151.0,0.00023867,2]
[363596981,1748779841011,-151.0,0.00023867,7]
[363596983,1748779841020,-151.0,0.00023867,2]
[363596985,1748779841029,-151.0,0.00023867,7]
[363596987,1748779841039,-151.0,0.00023867,2]
[363596989,1748779841049,-151.0,0.00023867,7]
[363596991,1748779841058,-151.0,0.00023867,2]
[363596993,1748779841068,-151.0,0.00023867,7]
[363596995,1748779841078,-151.0,0.00023867,2]
[363596997,1748779841088,-151.0,0.00023867,7]
[363596999,1748779841097,-151.0,0.00023867,7]
[363597001,1748779841107,-151.0,0.00023867,7]
[363597003,1748779841117,-165.38492,0.00023867,7]
[363597005,1748779841127,-158.674894,0.00023867,7]
[363597007,1748779841137,-286.389273,0.00023867,7]
[363597009,1748779841146,-286.389273,0.00023867,7]
[363597011,1748779841156,-286.389273,0.00023867,7]
[363597013,1748779841166,-286.389273,0.00023867,7]
[363597015,1748779841176,-286.389273,0.00023867,7]
[363597017,1748779841186,-286.389273,0.00023867,7]
[363597019,1748779841196,-286.389273,0.00023867,7]
[363597021,1748779841206,-286.389273,0.00023867,7]
[363597023,1748779841215,-286.389273,0.00023867,7]
[363597025,1748779841225,-286.389273,0.00023867,7]
[363597027,1748779841235,-286.389273,0.00023867,7]
[363597029,1748779841245,-286.389273,0.00023867,7]
[363597031,1748779841254,-286.389273,0.00023867,7]
[363597033,1748779841265,-286.389273,0.00023867,7]
[363597035,1748779841275,-286.389273,0.00023867,7]
[363597037,1748779841285,-286.389273,0.00023867,7]
[363597039,1748779841295,-286.389273,0.00023867,7]
[363597041,1748779841305,-286.389273,0.00023867,7]
[363597043,1748779841315,-286.389273,0.00023867,7]
[363597045,1748779841324,-286.3892741,0.00023867,7]
[363597047,1748779841335,-18945.75499401,0.00023869,3]
[363597049,1748779841346,-129105.55369143,0.00023869,2]
[363597051,1748779841355,-423.51412927,0.00023869,3]
[363597053,1748779841364,-151.0,0.00023869,7]
[363597055,1748779841373,-159.66865,0.00023869,7]
[363597057,1748779841384,-212559.79798728,0.00023869,20]
[363597062,1748779841430,-512.28997149,0.00023864,2]
[363597065,1748779841440,-500.0,0.00023864,2]
[363597067,1748779841450,-512.28997149,0.00023864,2]
[363597069,1748779841459,-391551.92122529,0.00023869,20]
[363597072,1748779841483,-2002.51000611,0.00023869,20]
[363597074,1748779841495,-2329.82989894,0.00023869,20]
[363597106,1748779841802,-512.28997149,0.00023864,2]
[363597108,1748779841812,-36.98983972,0.00023864,2]
[363597236,1748779842859,-199.49,0.00023859,10]
[363597238,1748779842870,-463.01016028,0.00023864,2]
[363597240,1748779842879,-512.28997149,0.00023864,2]
[363597242,1748779842889,-500.0,0.00023864,2]
[363597244,1748779842898,-512.28997149,0.00023864,2]
[363597246,1748779842908,-195.14491834,0.00023864,2]
[363597248,1748779842917,-512.28997149,0.00023864,2]
[363597250,1748779842927,-512.28997149,0.00023864,2]
[363597252,1748779842936,-512.28997149,0.00023864,2]
[363597254,1748779842946,-512.28997149,0.00023864,2]
[363597255,1748779842955,-3840.40871123,0.00023869,20]
[363597258,1748779842967,-13300.8162562,0.00023869,20]
[363597552,1748779846126,-404.0,0.00023869,20]
[363599120,1748779910085,389.534605,0.00013699,2]
[363599127,1748780152759,3000.0,0.00021917,60]
[363599130,1748780328797,987.2388209,0.00024657,120]
[363599133,1748780739128,-3467.77639618,0.00015332,2]
[363599135,1748780830294,-1847.76121956,0.00015179,2]
[363599136,1748780831828,19559.88321312,0.0002191,60]
[363599137,1748780836093,-3152.23878044,0.00015179,2]
[363599138,1748780836114,-588.7692279,0.00015334,2]
[363599139,1748780836136,-225.20098672,0.00015643,2]
[363599147,1748780984620,394.103222,0.00013699,2]
[363599224,1748781037999,-853.43793911,0.00014872,2]
[363599226,1748781038009,-177.70176178,0.00015022,2]
[363599229,1748781038019,-432.68089078,0.00015643,2]
[363599231,1748781038029,-182.44990732,0.00015945,2]
[363599233,1748781038039,-250.855509,0.00016123,2]
[363599235,1748781038050,-171.94471898,0.00016338,2]
[363599237,1748781038060,-156.587,0.00016428,2]
[363599239,1748781038071,-195.70882537,0.00016437,2]
[363599241,1748781038080,-233.94907006,0.00016437,2]
[363599243,1748781038090,-500.09798119,0.00016437,2]
[363599245,1748781038100,-500.0,0.00016437,2]
[363599247,1748781038110,-430.0,0.00016438,2]
[363599249,1748781038120,-370.0,0.00016438,2]
[363599251,1748781038130,-277.29118866,0.00016438,2]
[363599253,1748781038139,-430.0,0.00016438,2]
[363599255,1748781038148,-430.0,0.00016438,2]
[363599257,1748781038158,-430.0,0.00016438,2]
[363599259,1748781038168,-430.0,0.00016438,2]
[363599261,1748781038177,-430.0,0.00016438,2]
[363599263,1748781038186,-430.0,0.00016438,2]
[363599265,1748781038197,-430.0,0.00016438,2]
[363599267,1748781038206,-430.0,0.00016438,2]
[363599269,1748781038215,-430.0,0.00016438,2]
[363599271,1748781038225,-430.0,0.00016438,2]
[363599273,1748781038235,-430.0,0.00016438,2]
[363599275,1748781038244,-430.0,0.00016438,2]
[363599277,1748781038254,-430.0,0.00016438,2]
[363599279,1748781038263,-430.0,0.00016438,2]
[363599281,1748781038273,-430.0,0.00016438,2]
[363599283,1748781038282,-430.0,0.00016438,2]
[363599285,1748781038291,-430.0,0.00016438,2]
[363599287,1748781038301,-430.0,0.00016438,2]
[363599289,1748781038311,-430.0,0.00016438,2]
[363599291,1748781038321,-430.0,0.00016438,2]
[363599293,1748781038331,-430.0,0.00016438,2]
[363599295,1748781038340,-430.0,0.00016438,2]
[363599297,1748781038350,-430.0,0.00016438,2]
[363599299,1748781038359,-430.0,0.00016438,2]
[363599301,1748781038368,-430.0,0.00016438,2]
[363599303,1748781038378,-430.0,0.00016438,2]
[363599305,1748781038388,-430.0,0.00016438,2]
[363599307,1748781038398,-430.0,0.00016438,2]
[363599309,1748781038408,-430.0,0.00016438,2]
[363599311,1748781038417,-430.0,0.00016438,2]
[363599313,1748781038428,-430.0,0.00016438,2]
[363599315,1748781038438,-430.0,0.00016438,2]
[363599317,1748781038447,-430.0,0.00016438,2]
[363599319,1748781038457,-430.0,0.00016438,2]
[363599321,1748781038466,-430.0,0.00016438,2]
[363599323,1748781038476,-430.0,0.00016438,2]
[363599325,1748781038486,-430.0,0.00016438,2]
[363599327,1748781038495,-430.0,0.00016438,2]
[363599329,1748781038505,-430.0,0.00016438,2]
[363599331,1748781038514,-430.0,0.00016438,2]
[363599333,1748781038524,-430.0,0.00016438,2]
[363599335,1748781038534,-430.0,0.00016438,2]
[363599337,1748781038543,-430.0,0.00016438,2]
[363599339,1748781038553,-430.0,0.00016438,2]
[363599341,1748781038563,-430.0,0.00016438,2]
[363599343,1748781038572,-430.0,0.00016438,2]
[363599345,1748781038582,-430.0,0.00016438,2]
[363599347,1748781038591,-430.0,0.00016438,2]
[363599349,1748781038601,-430.0,0.00016438,2]
[363599351,1748781038610,-430.0,0.00016438,2]
[363599353,1748781038620,-430.0,0.00016438,2]
[363599355,1748781038629,-430.0,0.00016438,2]
[363599357,1748781038639,-430.0,0.00016438,2]
[363599359,1748781038649,-430.0,0.00016438,2]
[363599361,1748781038658,-430.0,0.00016438,2]
[363599363,1748781038668,-430.0,0.00016438,2]
[363599365,1748781038678,-430.0,0.00016438,2]
[363599367,1748781038687,-430.0,0.00016438,2]
[363599369,1748781038696,-430.0,0.00016438,2]
[363599371,1748781038706,-430.0,0.00016438,2]
[363599373,1748781038715,-430.0,0.00016438,2]
[363599375,1748781038725,-430.0,0.00016438,2]
[363599377,1748781038735,-430.0,0.00016438,2]
[363599379,1748781038745,-430.0,0.00016438,2]
[363599381,1748781038755,-430.0,0.00016438,2]
[363599383,1748781038764,-430.0,0.00016438,2]
[363599385,1748781038773,-430.0,0.00016438,2]
[363599387,1748781038783,-430.0,0.00016438,2]
[363599389,1748781038793,-430.0,0.00016438,2]
[363599391,1748781038802,-430.0,0.00016438,2]
[363599393,1748781038811,-430.0,0.00016438,2]
[363599395,1748781038821,-430.0,0.00016438,2]
[363599397,1748781038831,-430.0,0.00016438,2]
[363599399,1748781038840,-430.0,0.00016438,2]
[363599401,1748781038850,-1896.3,0.00016438,2]
[363599403,1748781038859,-430.0,0.00016438,2]
[363599405,1748781038873,-430.0,0.00016438,2]
[363599407,1748781038883,-496.36,0.00016438,2]
[363599409,1748781038892,-430.0,0.00016438,2]
[363599411,1748781038902,-430.0,0.00016438,2]
[363599413,1748781038913,-513.00828249,0.00016438,2]
[363599415,1748781038922,-430.0,0.00016438,2]
[363599417,1748781038932,-430.0,0.00016438,2]
[363599419,1748781038942,-1002.71,0.00016438,2]
[363599421,1748781038952,-2245.79,0.00016438,2]
[363599423,1748781038962,-1360.06,0.00016438,2]
[363599425,1748781038972,-430.0,0.00016438,2]
[363599427,1748781038981,-430.0,0.00016438,2]
[363599429,1748781038991,-1717.0,0.00016438,2]
[363599431,1748781039000,-430.0,0.00016438,2]
[363599433,1748781039010,-430.0,0.00016438,2]
[363599435,1748781039019,-430.0,0.00016438,2]
[363599438,1748781039029,-430.0,0.00016438,2]
[363599440,1748781039039,-430.0,0.00016438,2]
[363599442,1748781039048,-1423.19,0.00016438,2]
[363599444,1748781039057,-430.0,0.00016438,2]
[363599446,1748781039067,-430.0,0.00016438,2]
[363599448,1748781039076,-430.0,0.00016438,2]
[363599450,1748781039085,-430.0,0.00016438,2]
[363599452,1748781039095,-430.0,0.00016438,2]
[363599454,1748781039104,-430.0,0.00016438,2]
[363599456,1748781039114,-430.0,0.00016438,2]
[363599458,1748781039124,-430.0,0.00016438,2]
[363599460,1748781039134,-648.48,0.00016438,2]
[363599462,1748781039143,-591.3,0.00016438,2]
[363599464,1748781039153,-430.0,0.00016438,2]
[363599466,1748781039162,-430.0,0.00016438,2]
[363599468,1748781039171,-611.59,0.00016438,2]
[363599470,1748781039181,-430.0,0.00016438,2]
[363599472,1748781039191,-430.0,0.00016438,2]
[363599474,1748781039200,-430.0,0.00016438,2]
[363599476,1748781039210,-430.0,0.00016438,2]
[363599478,1748781039220,-430.0,0.00016438,2]
[363599480,1748781039230,-430.0,0.00016438,2]
[363599482,1748781039239,-430.0,0.00016438,2]
[363599484,1748781039250,-430.0,0.00016438,2]
[363599486,1748781039259,-430.0,0.00016438,2]
[363599488,1748781039268,-430.0,0.00016438,2]
[363599490,1748781039278,-430.0,0.00016438,2]
[363599492,1748781039287,-430.0,0.00016438,2]
[363599494,1748781039297,-430.0,0.00016438,2]
[363599496,1748781039306,-430.0,0.00016438,2]
[363599498,1748781039316,-430.0,0.00016438,2]
[363599500,1748781039326,-430.0,0.00016438,2]
[363599502,1748781039336,-430.0,0.00016438,2]
[363599504,1748781039346,-180.34656641,0.00016438,2]
[363599506,1748781039356,-430.0,0.00016438,2]
[363599508,1748781039365,-732.75,0.00016438,2]
[363599510,1748781039375,-430.0,0.00016438,2]
[363599512,1748781039384,-430.0,0.00016438,2]
[363599514,1748781039394,-430.0,0.00016438,2]
[363599516,1748781039404,-430.0,0.00016438,2]
[363599518,1748781039414,-430.0,0.00016438,2]
[363599520,1748781039423,-430.0,0.00016438,2]
[363599522,1748781039432,-430.0,0.00016438,2]
[363599524,1748781039442,-430.0,0.00016438,2]
[363599526,1748781039451,-430.0,0.00016438,2]
[363599529,1748781039461,-430.0,0.00016438,2]
[363599532,1748781039471,-647.88,0.00016438,2]
[363599535,1748781039480,-430.0,0.00016438,2]
[363599538,1748781039490,-430.0,0.00016438,2]
[363599541,1748781039499,-386.44811244,0.00016438,2]
[363599544,1748781039510,-430.0,0.00016438,2]
[363599547,1748781039519,-531.04,0.00016438,2]
[363599550,1748781039529,-430.0,0.00016438,2]
[363599552,1748781039539,-430.0,0.00016438,2]
[363599554,1748781039548,-430.0,0.00016438,2]
[363599556,1748781039558,-430.0,0.00016438,2]
[363599558,1748781039567,-267.28749386,0.00016438,2]
[363599560,1748781039578,-430.0,0.00016438,2]
[363599562,1748781039587,-430.0,0.00016438,2]
[363599564,1748781039597,-555.46,0.00016438,2]
[363599567,1748781039607,-430.0,0.00016438,2]
[363599570,1748781039617,-430.0,0.00016438,2]
[363599573,1748781039626,-721.44,0.00016438,2]
[363599576,1748781039636,-430.0,0.00016438,2]
[363599580,1748781039646,-430.0,0.00016438,2]
[363599583,1748781039655,-516.63655515,0.00016438,2]
[363599586,1748781039665,-1029.71,0.00016438,2]
[363599589,1748781039675,-430.0,0.00016438,2]
[363599592,1748781039684,-430.0,0.00016438,2]
[363599595,1748781039697,-430.6,0.00016702,3]
[363599598,1748781039707,-215.3,0.00016702,3]
[363599602,1748781039716,-645.94,0.00016702,3]
[363599604,1748781039726,-430.0,0.00016712,2]
[363599608,1748781039736,-430.0,0.00016712,2]
[363599611,1748781039745,-430.0,0.00016712,2]
[363599613,1748781039755,-430.0,0.00016712,2]
[363599616,1748781039764,-430.0,0.00016712,2]
[363599619,1748781039773,-193.17523759,0.00016712,2]
[363599622,1748781039783,-430.0,0.00016712,2]
[363599625,1748781039792,-430.0,0.00016712,2]
[363599628,1748781039802,-430.0,0.00016712,2]
[363599631,1748781039812,-430.0,0.00016712,2]
[363599634,1748781039822,-430.0,0.00016712,2]
[363599650,1748781039967,-430.0,0.00016712,2]
[363599652,1748781039978,-430.0,0.00016712,2]
[363599654,1748781039988,-430.0,0.00016712,2]
[363599656,1748781039998,-170.62495757,0.00016712,2]
[363599658,1748781040008,-430.0,0.00016712,2]
[363599660,1748781040017,-430.0,0.00016712,2]
[363599662,1748781040026,-502.38646509,0.00016712,2]
[363599664,1748781040036,-430.0,0.00016712,2]
[363599666,1748781040045,-430.0,0.00016712,2]
[363599668,1748781040054,-430.0,0.00016712,2]
[363599670,1748781040064,-254.86823981,0.00016712,2]
[363599672,1748781040074,-430.0,0.00016712,2]
[363599674,1748781040084,-430.0,0.00016712,2]
[363599676,1748781040094,-430.0,0.00016712,2]
[363599678,1748781040103,-430.0,0.00016712,2]
[363599680,1748781040114,-430.0,0.00016712,2]
[363599682,1748781040124,-430.0,0.00016712,2]
[363599684,1748781040134,-396.06876834,0.00016712,2]
[363599686,1748781040144,-430.0,0.00016712,2]
[363599688,1748781040153,-484.01025371,0.00016712,2]
[363599690,1748781040163,-430.0,0.00016712,2]
[363599692,1748781040172,-430.0,0.00016712,2]
[363599694,1748781040182,-430.0,0.00016712,2]
[363599696,1748781040192,-430.0,0.00016712,2]
[363599698,1748781040202,-430.0,0.00016712,2]
[363599700,1748781040212,-430.0,0.00016712,2]
[363599702,1748781040222,-430.0,0.00016712,2]
[363599704,1748781040231,-430.0,0.00016712,2]
[363599706,1748781040240,-430.0,0.00016712,2]
[363599708,1748781040250,-430.0,0.00016712,2]
[363599710,1748781040259,-430.0,0.00016712,2]
[363599712,1748781040269,-430.0,0.00016712,2]
[363599714,1748781040278,-430.0,0.00016712,2]
[363599716,1748781040288,-430.0,0.00016712,2]
[363599718,1748781040298,-430.0,0.00016712,2]
[363599720,1748781040307,-430.0,0.00016712,2]
[363599722,1748781040316,-430.0,0.00016712,2]
[363599724,1748781040326,-430.0,0.00016712,2]
[363599726,1748781040336,-430.0,0.00016712,2]
[363599728,1748781040345,-430.0,0.00016712,2]
[363599730,1748781040355,-430.0,0.00016712,2]
[363599732,1748781040365,-430.0,0.00016712,2]
[363599734,1748781040374,-430.0,0.00016712,2]
[363599736,1748781040384,-430.0,0.00016712,2]
[363599738,1748781040395,-430.0,0.00016712,2]
[363599740,1748781040404,-430.0,0.00016712,2]
[363599742,1748781040414,-273.80068983,0.00016712,2]
[363599744,1748781040424,-430.0,0.00016712,2]
[363599746,1748781040434,-430.0,0.00016712,2]
[363599748,1748781040442,-430.0,0.00016712,2]
[363599750,1748781040452,-254.36756907,0.00016712,2]
[363599752,1748781040462,-430.0,0.00016712,2]
[363599754,1748781040472,-430.0,0.00016712,2]
[363599756,1748781040481,-512.97616701,0.00016712,2]
[363599758,1748781040490,-430.0,0.00016712,2]
[363599760,1748781040499,-430.0,0.00016712,2]
[363599762,1748781040509,-430.0,0.00016712,2]
[363599764,1748781040519,-430.0,0.00016712,2]
[363599766,1748781040529,-430.0,0.00016712,2]
[363599768,1748781040538,-1896.3,0.00016712,2]
[363599770,1748781040548,-430.0,0.00016712,2]
[363599772,1748781040559,-430.0,0.00016712,2]
[363599774,1748781040576,-496.36,0.00016712,2]
[363599776,1748781040585,-559.96,0.00016712,2]
[363599778,1748781040595,-430.0,0.00016712,2]
[363599780,1748781040605,-430.0,0.00016712,2]
[363599782,1748781040614,-430.0,0.00016712,2]
[363599784,1748781040623,-1002.71,0.00016712,2]
[363599786,1748781040632,-2245.79,0.00016712,2]
[363599788,1748781040642,-1360.06,0.00016712,2]
[363599790,1748781040651,-430.0,0.00016712,2]
[363599792,1748781040662,-575.8,0.00016712,2]
[363599794,1748781040671,-1717.0,0.00016712,2]
[363599796,1748781040680,-430.0,0.00016712,2]
[363599798,1748781040689,-430.0,0.00016712,2]
[363599800,1748781040698,-430.0,0.00016712,2]
[363599802,1748781040708,-430.0,0.00016712,2]
[363599804,1748781040717,-1423.19,0.00016712,2]
[363599806,1748781040727,-430.0,0.00016712,2]
[363599808,1748781040736,-430.0,0.00016712,2]
[363599810,1748781040746,-430.0,0.00016712,2]
[363599812,1748781040755,-430.0,0.00016712,2]
[363599814,1748781040765,-430.0,0.00016712,2]
[363599816,1748781040774,-430.0,0.00016712,2]
[363599818,1748781040787,-430.0,0.00016712,2]